Cogmind - Beta 14 @@@ ROGUE MODE // 2025.01.08 @ 19:23:13 Player: xack Result: Destroyed by FF-DDP(R) with Subdweller Laser Performance ------------- Evolutions (0) 0 Regions Visited (1) 200 Robots Destroyed (30) 150 Value Destroyed (718) 718 Prototype IDs (2) 40 Alien Tech Used (0) 0 Bonus (0) 0 TOTAL SCORE: 1108 Bonus ------- None Cogmind --------- Core Integrity 0/250 Matter 230/300 Energy 265/265 System Corruption 0% Temperature Cool (6) Movement Treading (160) Location -10/Materials Parts ------- > --- POWER (1) -------- Improved Ion Engine > --- PROPULSION (2) --- Improved Treads Improved Treads > --- UTILITY (2) ------ Large Storage Unit Hardened Light Armor Plating > --- WEAPON (2) ------- Light Cannon Light Cannon > --- INVENTORY (15) --- Light Nuclear Core Improved Treads Compact Wheel Heat Sink Improved Heat Sink High-capacity Storage Unit Visual Processing Unit Improved Medium Laser Light Cannon Mining Laser Peak State ------------ > --- POWER ------------ Improved Ion Engine > --- PROPULSION ------- Improved Treads Improved Treads > --- UTILITY ---------- Small Storage Unit Seismic Detector > --- WEAPON ----------- Improved Medium Laser Improved Medium Laser > --- INVENTORY -------- Improved Ion Engine Light Treads Light Treads Light Treads Compact Wheel Hardened Light Armor Plating Tractor Beam Mining Laser [Rating: 15] Favorites ----------- Power Improved Ion Engine Engine Improved Ion Engine Propulsion Light Treads Treads Light Treads Leg Aluminum Leg Utility Hardened Light Armor Plating Device Seismic Detector Storage Small Storage Unit Protection Hardened Light Armor Plating Weapon Improved Medium Laser Energy Gun Improved Medium Laser Ballistic Gun Assault Rifle Ballistic Cannon Light Cannon Build | -11 -10 ------- Run | Yrd Mat Slots Evolved . | . . Power . | . . Propulsion . | . . Utility . | . . Weapon . | . . Parts Attached 30 | 9 21 Power 5 | 3 2 Engine 5 | 3 2 Core . | . . Reactor . | . . Propulsion 11 | 2 9 Treads 9 | . 9 Leg 2 | 2 . Wheel . | . . Hover . | . . Flight . | . . Utility 6 | 2 4 Device 2 | 1 1 Storage 2 | 1 1 Processor . | . . Hackware . | . . Protection 2 | . 2 Artifact . | . . Weapon 8 | 2 6 Energy Gun 3 | . 3 Energy Cannon . | . . Ballistic Gun 3 | 2 1 Ballistic Cannon 2 | . 2 Launcher . | . . Special Weapon . | . . Impact Weapon . | . . Slashing Weapon . | . . Piercing Weapon . | . . Special Melee Weapon . | . . Unidentified Prototypes 1 | . 1 Parts Lost 7 | . 7 Power 1 | . 1 Propulsion 3 | . 3 Utility 1 | . 1 Weapon 2 | . 2 Highest Loss Streak 3 | . 3 To Critical Strikes . | . . Average Slot Usage (%) 99 | . 99 Engine 13 | . 13 Treads 27 | . 27 Device 4 | . 4 Storage 14 | . 14 Protection 9 | . 9 Energy Gun 12 | . 12 Ballistic Gun 6 | . 6 Ballistic Cannon 9 | . 9 Peak Build Rating 15 | 7 15 Average Rating 11 | 4 12 On Entrance 3 | . 7 Naked Turns . | . . Heaviest Build 38 | 14 38 Greatest Support 46 | 20 46 Greatest Overweight (x) 4 | 4 1 Average Overweight (x) . | . . Largest Inventory Capacity 15 | 8 15 Average Capacity 10 | 7 11 Most Carried 11 | 6 11 Average Carried 8 | 4 8 Final Capacity 15 | 8 15 Final Carried 10 | 6 10 Class Distribution -------------------- 100% | Mutant Dominant Class ---------------- Mutant | -10/Materials Resources | -11 -10 ----------- Run | Yrd Mat Matter Collected 808 | 326 482 Remotely . | . . Salvage Created 906 | 153 753 Parts 55 | 12 43 Haulers Intercepted 1 | . 1 Recyclers Shooed . | . . Parts Field Recycled . | . . Retrieved Matter . | . . Parts Self-Destructed . | . . Prevented . | . . Kills | -11 -10 ------- Run | Yrd Mat Combat Hostiles Destroyed 24 | . 24 Guns 16 | . 16 Cannons 8 | . 8 Classes Destroyed 6 | 2 4 Tunneler 3 | 3 . Hauler 1 | . 1 Recycler 1 | 1 . Watcher 1 | . 1 Swarmer 8 | . 8 Grunt 16 | . 16 Best Kill Streak 4 | 3 4 Combat Bots Only 4 | . 4 Max Kills in Single Turn 1 | 1 1 Gunslinging . | . . Exploded . | . . Melee . | . . Uniques/NPCs Destroyed . | . . Combat | -11 -10 -------- Run | Yrd Mat Hostile Shots Fired 186 | . 186 Missed 52 | . 52 Damage Taken 1448 | . 1448 Core 260 | . 260 Absorbed by Shields . | . . Core Remaining (%) 100 | 100 . Volleys Fired 97 | 6 91 Largest 2 | 2 2 Hottest 112 | 40 112 Shots Fired 181 | 12 169 Gun 118 | 12 106 Cannon 63 | . 63 Launcher . | . . Special . | . . Kinetic 115 | 12 103 Thermal 66 | . 66 Explosive . | . . Electromagnetic . | . . Robot Hit Streak 5 | 3 5 Robot Miss Streak 11 | 1 11 Penetration Max . | . . Secondary Targets 1 | . 1 Max Gunslinging Chain 1 | . 1 Shots Hit Robots 97 | 7 90 Core Hits 39 | 5 34 Critical Kills . | . . Critical Parts Destroyed . | . . Critical Strikes 12 | . 12 Burn 7 | . 7 Blast 5 | . 5 Melee Attacks . | . . Impact . | . . Slashing . | . . Piercing . | . . Sneak Attacks . | . . Combat Hostiles . | . . Follow-up Attacks . | . . Damage Inflicted 1566 | 89 1477 Guns 979 | 89 890 Cannons 587 | . 587 Explosions . | . . Melee . | . . Ramming . | . . Kinetic 1009 | 89 920 Thermal 557 | . 557 Explosive . | . . Electromagnetic . | . . Impact . | . . Slashing . | . . Piercing . | . . Highest Corruption . | . . Average Corruption . | . . Corruption Purged . | . . Corruption Blocked . | . . Overload Shots . | . . Overflow Damage . | . . Projectiles . | . . Explosions . | . . Melee . | . . Knockbacks 4 | . 4 Impact . | . . Kinetic 4 | . 4 Secondary . | . . Self-Inflicted Damage . | . . Shots . | . . Rammed . | . . Targets Rammed . | . . Kicked . | . . Crushed . | . . Highest Temperature 365 | . 365 Average Temperature 140 | . 140 Received Heat Transfer 588 | . 588 Effects 5 | . 5 Interference 5 | . 5 Siege Activations . | . . Robots Corrupted . | . . Combat Hostiles . | . . Parts Fried . | . . Impact Corruptions . | . . Robots Melted . | . . Combat Hostiles . | . . Parts Melted 2 | . 2 Heat Transferred 1739 | . 1739 Parts Sabotaged . | . . Parts Stolen . | . . Parts Stripped . | . . Power Chain Reactions . | . . Alert | -11 -10 ------- Run | Yrd Mat Peak Influence 178 | 20 178 Initial 13 | . 13 Average 82 | 7 88 Maximum Alert Level . | . . Low Security (%) 100 | 100 100 Level 1 . | . . Level 2 . | . . Level 3 . | . . Level 4 . | . . Level 5 . | . . High Security . | . . Max Security . | . . Squads Dispatched 5 | . 5 Investigation 2 | . 2 Extermination . | . . Reinforcement 3 | . 3 Assault . | . . Garrison . | . . Intercept . | . . Searches Triggered . | . . Construction Impeded . | . . Haulers Reinforced . | . . Active Scanning Responses . | . . Cargo Convoy Interrupts . | . . Stealth | -11 -10 --------- Run | Yrd Mat Distress Signals 6 | . 6 Communications Jammed . | . . Distress Signals . | . . Times Spotted 43 | . 43 Peak Tracking Total 4 | . 4 Tactical Retreats 3 | . 3 Traps | -11 -10 ------- Run | Yrd Mat Traps Triggered 1 | . 1 Indirectly . | . . Trap Hack Attempts . | . . Triggered . | . . Disarmed . | . . Reprogrammed . | . . Reused . | . . Traps Extracted . | . . Installed . | . . Triggered . | . . Machines | -11 -10 ---------- Run | Yrd Mat Machines Disabled 1 | . 1 Max in Single Turn 1 | . 1 Machines Repaired . | . . Machines Dismantled . | . . Machines Sabotaged . | . . Overloaded Fab Kills . | . . Hacking | -11 -10 --------- Run | Yrd Mat Machines Accessed 5 | . 5 Terminals 5 | . 5 Fabricators . | . . Repair Stations . | . . Recycling Units . | . . Scanalyzers . | . . Garrison Access . | . . Total Hacks 19 | . 19 Successful 9 | . 9 Failed 10 | . 10 Catastrophic . | . . Database Lockouts . | . . Manual 9 | . 9 Terminals 19 | . 19 Fabricators . | . . Repair Stations . | . . Recycling Units . | . . Scanalyzers . | . . Garrison Access . | . . Terminal Hacks 6 | . 6 Part Schematic 1 | . 1 Prototype ID Bank 1 | . 1 Unreport Threat 1 | . 1 Locate Traps 2 | . 2 Hauler Manifests 1 | . 1 Fabricator Hacks . | . . Repair Station Hacks . | . . Recycling Unit Hacks . | . . Scanalyzer . | . . Garrison Access Hacks . | . . Unauthorized Hacks 3 | . 3 Terminals 3 | . 3 Track 1 | . 1 Botnet 2 | . 2 Fabricators . | . . Repair Stations . | . . Recycling Units . | . . Scanalyzers . | . . Garrison Access . | . . Data Cores Recovered . | . . Used . | . . Hacking Detections 5 | . 5 Full Trace Events 1 | . 1 Feedback Events . | . . Feedback Blocked . | . . Robot Schematics Acquired . | . . Robots Built . | . . Authchips . | . . Time . | . . Total Robot Build Rating . | . . Part Schematics Acquired 1 | . 1 Parts Built . | . . Authchips . | . . Time . | . . Total Part Build Rating . | . . Parts Repaired . | . . Time . | . . Parts Recycled . | . . Recycled Matter . | . . Retrieved Matter . | . . Retrieved Components . | . . Parts Scanalyzed . | . . Part Schematics Acquired . | . . Parts Damaged . | . . Bothacking | -11 -10 ------------ Run | Yrd Mat Used RIF Installer . | . . Robots Hacked . | . . Non-combat . | . . Combat . | . . Robot Hacks Applied . | . . Relay Couplers Released . | . . Fabnet Peak Effective % . | . . Robots Rewired . | . . Allies Hacked . | . . Hacks Repelled . | . . Allies | -11 -10 -------- Run | Yrd Mat Total Allies . | . . Largest Group . | . . Highest-Rated Group . | . . Highest-Rated Ally . | . . Total Orders . | . . Ally Attacks . | . . Total Damage . | . . Kills . | . . Allies Corrupted . | . . Allies Melted . | . . Intel | -11 -10 ------- Run | Yrd Mat Robot Analysis Total . | . . Derelict Logs Recovered . | . . Drone Launches . | . . Drone Recoveries . | . . Exploration | -11 -10 ------------- Run | Yrd Mat Turns Passed 1682 | 120 1562 Spaces Moved 761 | 63 698 Core 29 | 29 . Treads 672 | . 672 Legs 60 | 34 26 Wheels . | . . Hover . | . . Flight . | . . Fastest Speed 50 | 50 120 Average Speed 156 | 129 158 Slowest Speed 250 | 250 240 Overloaded Moves . | . . Propulsion Burnouts . | . . Robots Hopped . | . . Cave-ins Triggered . | . . Exploration Rate (%) 49 | 4 94 Regions Visited 1 Branch Regions . Pre-discovered Areas . | . . Known Exits Taken . | . . Unknown Exits Taken 1 | 1 . Scrap Searched . | . . Spaces Dug . | . . Terrain Destroyed . | . . Melee . | . . Projectile . | . . AOE . | . . Terrain Rammed . | . . Walls Destroyed . | . . Machines Disabled . | . . Actions | -11 -10 --------- Run | Yrd Mat Total 1071 | 86 985 Wait 149 | . 149 Move 760 | 62 698 Hop . | . . Pick Up 23 | 8 15 Fast Attach 9 | 5 4 Attach 9 | 2 7 Detach . | . . Swap 12 | 2 10 Drop 12 | 1 11 Fire 97 | 6 91 Melee . | . . Ram . | . . Kick . | . . Crush . | . . Escape Stasis . | . . Rewire . | . . Trap . | . . Miscellaneous . | . . Route ------- -11/Scrapyard -10/Materials (discovered 4 exits: [*Mat x3] / [*Min]) History --------- Turn | Location | Event 6 | -11/Scrapyard | Discovered new exit (range 16) 121 | -11/Scrapyard | Entered Materials 300 | -10/Materials | Build established: Mutant 466 | -10/Materials | Discovered new exit (range 11) 714 | -10/Materials | Discovered new exit (range 10) 722 | -10/Materials | Discovered new exit (range 16) 844 | -10/Materials | Core integrity fell below 50% 1052 | -10/Materials | Lost 3 parts (1p1n1w) 1108 | -10/Materials | Discovered new exit (range 6) 1235 | -10/Materials | Core integrity fell below 20% 1321 | -10/Materials | Derelicts attacked the area 1683 | -10/Materials | Destroyed by FF-DDP(R) with Subdweller Laser Last Messages --------------- (Blast). 01441_ G-34 Mercenary destroyed. 01443_ K-01 Serf collects debris. 01447_ Acquired Lgt. Nuclear Core. 01448_ Acquired 29 matter. 01450_ K-01 Serf collects debris. 01536_ S-10 Pest destroyed. 01550_ Imp. Treads destroyed. 01567_ S-10 Pest Lgt. Assault Rifle blasted off. 01567_ S-10 Pest destroyed. 01575_ Overheating: System interference. 01575_ Lgt. Cannon temporarily disabled. 01585_ K-01 Serf collects debris. 01596_ Acquired 12 matter. 01602_ Acquired 4 matter. 01608_ Acquired 5 matter. 01619_ U-05 Engineer works on Atomic Centrifuge. 01666_ Acquired 2 matter. 01682_ FF-DDP(R) heat short circuits Sub. Optics. Map ----- +----------------------------------------------------+ | ???????#! """ # # #???? | | ???????#[ + # #???? | | ???????#=[[ # ! # #???? | | ???????#!== """ """ # # #???? | | ???????# = """ """ # # #???? | | ######?##### """ """ ########## #???? | | # ####### #???? | | # # = ! ? ##### | | # # #####+###+######????# | | # # # # ! ???# | | # + + """ """ # """ # !! | | # " # ###### """ """ # """"" # !! | | # T # #????# """ """ # """"" # !! | | #/ " # #????# """ """ # """"" # | | # # #????# """ """ # """ # | | ###### #????# ! # # | | ?????# #????# % k *%# % # | | ?????# #############+######+##### | | ?????# # #??#!%= R | | ?????# # < k #### !%= | | ?????# # !=* *% | | ????##+##### #####+############ # | | ????#^^ ^ # T # *%%* #??# # | | ????#^ # """! # """""= #??# # | | ????# + """!% # """"" " "" #??# # | | ????# # """@!! # """"" "R"" #??# # | | ????# # !=%* # """ #??# # | | ????# # = # ! =#??# # | | ????######## ##########+###########???# # | | ???????????# #?? #?????????# # | | ???????????# #?# """" """ #?????????? # | | ???????????# #?# """" """ #?????????? # | | ???????????# #?# """" """ #?????????? # | | ???????????# #?# #?????##### # | | ???????????# #########+############ # | | ???????????# = T" # | | ???????????# [ [ " # | | ????#####??# ######## # | | ???? ?# #??????############### # | | ???? """ ?# #?########???????????## ## | | ??? """ # # ????????????# ## | | ??# [ """ # # """ """?????????????# | | ??# + + "" """?????????????# | | ??# """ # # """ ????????????# | | ??? """ !# # #???????????# < ## | | ???? """ ?# #? #???????????# ## | | ???? ?# #? #???????????##### | | ????#####??# #?? #???????????????# | | ???????????# #??########???????????????# | | ????????#### #?????????????????????????# | +----------------------------------------------------+ Best States ------------- Heat Dissipation 35 Energy Generation 12 Energy Capacity 265 Matter Stores 300 Matter Capacity 300 Sight Range 16 Terrain Scan Density 10 Armor Coverage 150 Evasion (%) 55 Recoil Reduction 2 Item Schematics ----------------- Hcp. Storage Unit | -10/Materials | Hacked Robot Schematics ------------------ None Fabricated ------------ Nothing Alien Tech Used ----------------- None Achievements -------------- None Challenges ------------ None Game ------ Seed TeslaMiniBarrier Manual? 0 Play Time 00:17:32 Cumulative 69.5 hours Start 2025.01.06 @ 22:32:25 End 2025.01.08 @ 19:23:13 Sessions 4 Manual Loads 0 Difficulty Rogue Special Mode None Game No. 34 Rogue 34 Adventurer 0 Explorer 0 Win Type - Total 0 Types 0/0/0/0/0/0/0/0/0 Lore% 38 Gallery% 40 Achievement% 37 Wizard Run 0 Options --------- Layout 1 ASCII 0 Keyboard 0 Movement Mouse Keybinds 0 Fullscreen 1 Font 32/Smallcaps Map View 50x35 Zoom Use 0% Tactical HUD 1 Map Filters NONE Filters NONE Steam 1 RUN: 45fb3910-0083-45d5-9a74-b2d4cc534b38